fUSD/lending_fUSD_20250407
["ID","MTS","AMOUNT","RATE_DAILY","PERIOD"]
[357385576,1744033349330,-356.57832,0.0003699,7]
[357385577,1744033349357,-152379.99101694,0.00037,2]
[357385578,1744033349384,-151.0,0.00037,7]
[357385579,1744033349416,-151.0,0.00037,7]
[357385580,1744033349443,-151.0,0.00037,7]
[357385581,1744033349471,-151.0,0.00037,7]
[357385582,1744033349497,-151.0,0.00037,7]
[357385583,1744033349525,-151.0,0.00037,7]
[357385584,1744033349551,-151.0,0.00037,7]
[357385585,1744033349579,-151.0,0.00037,7]
[357385586,1744033349605,-243.741296,0.00037,7]
[357385587,1744033349632,-325.35482,0.00037,7]
[357385588,1744033349663,-325.35482,0.00037,7]
[357385589,1744033349690,-151.0,0.00037,7]
[357385590,1744033349717,-151.0,0.00037,7]
[357385591,1744033349744,-279.735379,0.00037,7]
[357385592,1744033349776,-151.0,0.00037,7]
[357385593,1744033349803,-279.735379,0.00037,7]
[357385594,1744033349833,-7378.619414,0.00037,7]
[357385595,1744033349861,-7378.619414,0.00037,7]
[357385596,1744033349891,-387.894996,0.00037,7]
[357385597,1744033349923,-387.894996,0.00037,7]
[357385598,1744033349950,-372.330521,0.00037,7]
[357385599,1744033349978,-372.330521,0.00037,7]
[357385600,1744033350005,-504.174447,0.00037,7]
[357385601,1744033350032,-151.0,0.00037,7]
[357385602,1744033350060,-504.174447,0.00037,7]
[357385603,1744033350089,-356.57832,0.00037,7]
[357385604,1744033350121,-356.57832,0.00037,7]
[357385605,1744033350151,-151.0,0.00037,7]
[357385606,1744033350184,-151.0,0.00037,7]
[357385607,1744033350213,-45.44185408,0.00037,7]
[357385608,1744033350919,-105.55814592,0.00037,7]
[357385609,1744033350929,-68.25185408,0.00037,7]
[357385610,1744033350941,-169.48,0.00037,7]
[357385611,1744033350956,-434.09184092,0.00037,7]
[357385612,1744033350966,-283.601999,0.00037,7]
[357385613,1744033350976,-671.823695,0.00037,7]
[357385614,1744033350986,-265.63666608,0.00037,7]
[357385615,1744033351007,-140.50529592,0.00037,7]
[357385616,1744033351018,-283.601999,0.00037,7]
[357385617,1744033351027,-151.0,0.00037,7]
[357385618,1744033351037,-406.141962,0.00037,7]
[357385619,1744033351047,-151.0,0.00037,7]
[357385620,1744033351057,-151.0,0.00037,7]
[357385621,1744033351066,-151.0,0.00037,7]
[357385622,1744033351076,-151.0,0.00037,7]
[357385623,1744033351088,-50.12836737,0.00037,7]
[357385624,1744033351110,-100.87163263,0.00037,7]
[357385625,1744033351119,-151.0,0.00037,7]
[357385626,1744033351130,-254.633733,0.00037,7]
[357385627,1744033351140,-254.633733,0.00037,7]
[357385628,1744033351149,-151.0,0.00037,7]
[357385629,1744033351158,-151.0,0.00037,7]
[357385630,1744033351172,-151.0,0.00037,7]
[357385631,1744033351183,-151.0,0.00037,7]
[357385632,1744033351192,-151.0,0.00037,7]
[357385633,1744033351201,-119.23852565,0.00037,7]
[357385634,1744033351212,-31.76147435,0.00037,7]
[357385635,1744033351222,-151.0,0.00037,7]
[357385636,1744033351231,-151.0,0.00037,7]
[357385637,1744033351240,-151.0,0.00037,7]
[357385638,1744033351250,-15.23852565,0.00037,7]
[357385639,1744033351265,-135.76147435,0.00037,7]
[357385640,1744033351276,-287.920984,0.00037,7]
[357385641,1744033351284,-75.62754165,0.00037,7]
[357385642,1744033351301,-200.0,0.00037,7]
[357385643,1744033351316,-1056.35,0.00037,7]
[357385644,1744033351331,-180.29,0.00037,7]
[357385645,1744033351343,-160.86,0.00037,7]
[357385646,1744033351358,-180.29,0.00037,7]
[357385647,1744033351406,-169.63870035,0.00037,7]
[357385648,1744033351419,-30.36129965,0.00037,7]
[357385649,1744033351445,-180.29,0.00037,7]
[357385650,1744033351457,-180.29,0.00037,7]
[357385651,1744033351472,-1632.11494235,0.00037,7]
[357385652,1744033351482,-287.920984,0.00037,7]
[357385653,1744033351491,-197.006054,0.00037,7]
[357385654,1744033351499,-197.006054,0.00037,7]
[357385655,1744033351508,-151.0,0.00037,7]
[357385656,1744033351517,-405.13026585,0.000372,103]
[357385657,1744033351526,-88.7428998,0.00037368,2]
[357385658,1744033351541,-410.5671002,0.00037368,2]
[357385659,1744033351553,-562.32,0.00037445,120]
[357385660,1744033351562,-150.0,0.00037482,2]
[357385661,1744033351570,-733.11,0.00037542,2]
[357385662,1744033351579,-1302.9528998,0.00037542,120]
[357385663,1744033351590,-150.99,0.00037542,120]
[357385664,1744033351605,-46.0571002,0.00037542,120]
[357385665,1744033351614,-283.5428998,0.0003759,2]
[357385666,1744033351624,-210.23,0.0003759,2]
[357385667,1744033351640,-250.0,0.0003759,2]
[357385668,1744033351655,-250.0,0.0003759,2]
[357385669,1744033351673,-3194.86228044,0.0003759,2]
[357385670,1744033351682,-292.5923,0.000376,120]
[357385671,1744033351692,-227.79,0.00037737,2]
[357385672,1744033351701,-167.76667554,0.000378,2]
[357385673,1744033351710,-151.95805675,0.00037999,120]
[357385674,1744033351719,-198.5297873,0.00038,120]
[357385675,1744033351727,-650.3552433,0.00038,120]
[357385676,1744033351736,-1200.0,0.00038,2]
[357385677,1744033351745,-7663.17565667,0.00038,2]
[357385678,1744033351760,-318.4567,0.00038,2]
[357385679,1744033351775,-1443.811,0.00038,2]
[357385680,1744033351785,-1212.62053301,0.00038,2]
[357385681,1744033351804,-173.40853228,0.00038,2]
[357385682,1744033351815,-556.0,0.00038,2]
[357385683,1744033351836,-240.911,0.00038,2]
[357385684,1744033351858,-838.06395977,0.00038,2]
[357385685,1744033351868,-1212.62053296,0.00038389,2]
[357385686,1744033351877,-263.67,0.00038443,2]
[357385687,1744033351887,-160.86,0.00038888,2]
[357385688,1744033351896,-1000.0,0.00038892,30]
[357385689,1744033351906,-1200.0,0.00039,3]
[357385690,1744033351920,-214.23852231,0.00039,120]
[357385691,1744033351929,-524.12398496,0.00039,120]
[357385692,1744033351978,-3046.86739113,0.00039,120]
[357385693,1744033351987,-167.52835503,0.00039,120]
[357385694,1744033351997,-996.73,0.00039135,2]
[357385695,1744033352006,-499.31,0.00039148,2]
[357385696,1744033352015,-200.0,0.00039184,120]
[357385697,1744033352025,-2126.06496276,0.0003949,2]
[357385698,1744033352034,-209.38148751,0.0003962,2]
[357385699,1744033352043,-500.0,0.00039973,5]
[357385700,1744033352053,-502.35256817,0.00039973,5]
[357385701,1744033352062,-500.0,0.00039973,5]
[357385702,1744033352072,-503.0990967,0.00039973,5]
[357385703,1744033352082,-500.0,0.00039973,5]
[357385704,1744033352096,-500.0,0.00039973,5]
[357385705,1744033352105,-151.0,0.0003999,14]
[357385706,1744033352115,-387.894996,0.0003999,14]
[357385707,1744033352124,-387.894996,0.0003999,14]
[357385708,1744033352134,-356.57832,0.0003999,14]
[357385709,1744033352144,-356.57832,0.0003999,14]
[357385710,1744033352154,-689.935196,0.0003999,14]
[357385711,1744033352168,-689.935196,0.0003999,14]
[357385712,1744033352178,-671.823695,0.0003999,14]
[357385713,1744033352188,-151.0,0.0003999,14]
[357385714,1744033352197,-283.601999,0.0003999,14]
[357385715,1744033352207,-622.4234207,0.0003999,14]
[357385716,1744033352223,-49.4002743,0.0003999,14]
[357385717,1744033352232,-406.141962,0.0003999,14]
[357385718,1744033352242,-283.601999,0.0003999,14]
[357385719,1744033352251,-406.141962,0.0003999,14]
[357385720,1744033352260,-151.0,0.0003999,14]
[357385721,1744033352269,-254.633733,0.0003999,14]
[357385722,1744033352279,-254.633733,0.0003999,14]
[357385723,1744033352289,-151.34,0.0003999,2]
[357385724,1744033352298,-197.006054,0.0003999,14]
[357385725,1744033352307,-197.006054,0.0003999,14]
[357385726,1744033352317,-198.5297873,0.0004,120]
[357385727,1744033352326,-650.3552433,0.0004,120]
[357385728,1744033352336,-1240.0,0.0004,4]
[357385729,1744033352345,-10054.45306465,0.0004,120]
[357385730,1744033352355,-345.79107854,0.0004,5]
[357385731,1744033352367,-150.3,0.0004,5]
[357385732,1744033352380,-150.0,0.0004,5]
[357385733,1744033352401,-77.28954101,0.0004,5]
[357385734,1744033352412,-242.8511152,0.0004,2]
[357385735,1744033352433,-191.41173109,0.0004,2]
[357385736,1744033352445,-154.64651455,0.0004,2]
[357385737,1744033352454,-18.38125597,0.0004,30]
[357385738,1744033352466,-5106.10341794,0.0004,30]
[357385739,1744033352476,-1941.53269806,0.0004,7]
[357385740,1744033352485,-8604.46423287,0.0004,2]
[357385741,1744033352495,-9997.32020136,0.0004,30]
[357385742,1744033352504,-405.78823983,0.0004,120]
[357385743,1744033352513,-378.36679028,0.0004,2]
[357385744,1744033352522,-5060.20959684,0.0004,2]
[357385745,1744033352531,-212.06202181,0.0004,2]
[357385746,1744033352541,-3001.31617396,0.0004,30]
[357385747,1744033352550,-155.94990164,0.0004,15]
[357385748,1744033352559,-19775.52124376,0.0004,30]
[357385749,1744033352568,-151.0,0.0004,14]
[357385750,1744033352577,-151.0,0.0004,14]
[357385751,1744033352586,-255.530843,0.0004,14]
[357385752,1744033352595,-151.0,0.0004,14]
[357385753,1744033352605,-289.351307,0.0004,14]
[357385754,1744033352614,-153.847183,0.0004,14]
[357385755,1744033352623,-7378.619414,0.0004,14]
[357385756,1744033352633,-7378.619414,0.0004,14]
[357385757,1744033352642,-387.894996,0.0004,14]
[357385758,1744033352651,-387.894996,0.0004,14]
[357385759,1744033352661,-372.330521,0.0004,14]
[357385760,1744033352672,-372.330521,0.0004,14]
[357385761,1744033352681,-356.57832,0.0004,14]
[357385762,1744033352691,-356.57832,0.0004,14]
[357385763,1744033352700,-151.0,0.0004,14]
[357385764,1744033352709,-151.0,0.0004,14]
[357385765,1744033352719,-689.935196,0.0004,14]
[357385766,1744033352728,-689.935196,0.0004,14]
[357385767,1744033352737,-151.0,0.0004,14]
[357385768,1744033352748,-671.823695,0.0004,14]
[357385769,1744033352757,-151.0,0.0004,14]
[357385770,1744033352766,-283.601999,0.0004,14]
[357385771,1744033352776,-671.823695,0.0004,14]
[357385772,1744033352786,-406.141962,0.0004,14]
[357385773,1744033352795,-283.601999,0.0004,14]
[357385774,1744033352804,-151.0,0.0004,14]
[357385775,1744033352813,-406.141962,0.0004,14]
[357385776,1744033352822,-228.925416,0.0004,14]
[357385777,1744033352831,-151.0,0.0004,14]
[357385778,1744033352840,-151.0,0.0004,14]
[357385779,1744033352859,-151.0,0.0004,14]
[357385780,1744033352869,-151.0,0.0004,14]
[357385781,1744033352879,-151.0,0.0004,14]
[357385782,1744033352888,-151.0,0.0004,14]
[357385783,1744033352898,-254.633733,0.0004,14]
[357385784,1744033352907,-254.633733,0.0004,14]
[357385785,1744033352921,-151.0,0.0004,14]
[357385786,1744033352931,-418.235482,0.0004,14]
[357385787,1744033352940,-418.235482,0.0004,14]
[357385788,1744033352949,-151.0,0.0004,14]
[357385789,1744033352959,-174.911139,0.0004,14]
[357385790,1744033352968,-151.0,0.0004,14]
[357385791,1744033352978,-151.0,0.0004,14]
[357385792,1744033352987,-151.0,0.0004,14]
[357385793,1744033352996,-151.0,0.0004,14]
[357385794,1744033353006,-151.0,0.0004,14]
[357385795,1744033353016,-151.0,0.0004,14]
[357385796,1744033353026,-151.0,0.0004,14]
[357385797,1744033353036,-157.20792,0.0004,14]
[357385798,1744033353046,-151.0,0.0004,14]
[357385799,1744033353057,-151.0,0.0004,14]
[357385800,1744033353067,-151.0,0.0004,14]
[357385801,1744033353078,-151.0,0.0004,14]
[357385802,1744033353093,-151.0,0.0004,14]
[357385803,1744033353103,-151.0,0.0004,14]
[357385804,1744033353112,-287.920984,0.0004,14]
[357385805,1744033353122,-2023.056242,0.0004,14]
[357385806,1744033353132,-2023.056242,0.0004,14]
[357385807,1744033353141,-1033.08223625,0.0004,14]
[357385808,1744033353167,-989.97400575,0.0004,14]
[357385809,1744033353176,-287.920984,0.0004,14]
[357385810,1744033353188,-2023.056242,0.0004,14]
[357385811,1744033353198,-197.006054,0.0004,14]
[357385812,1744033353208,-197.006054,0.0004,14]
[357385813,1744033353217,-151.0,0.0004,14]
[357385814,1744033353227,-151.0,0.0004,14]
[357385815,1744033353237,-405.13026583,0.00040035,120]
[357385816,1744033353247,-1212.62053296,0.00040084,15]
[357385817,1744033353257,-250.0,0.00040373,2]
[357385818,1744033353266,-23900.0,0.00040626,2]
[357385819,1744033353276,-151.0,0.00040626,14]
[357385820,1744033353286,-151.0,0.00040626,14]
[357385821,1744033353296,-151.0,0.00040626,14]
[357385822,1744033353306,-151.0,0.00040626,14]
[357385823,1744033353316,-151.0,0.00040626,14]
[357385824,1744033353325,-151.0,0.00040626,14]
[357385825,1744033353335,-151.0,0.00040626,14]
[357385826,1744033353345,-151.0,0.00040626,14]
[357385827,1744033353354,-151.0,0.00040626,14]
[357385828,1744033353363,-418.235482,0.00040626,14]
[357385829,1744033353373,-418.235482,0.00040626,14]
[357385830,1744033353383,-151.0,0.00040626,14]
[357385831,1744033353392,-151.0,0.00040626,14]
[357385832,1744033353403,-287.920984,0.00040626,14]
[357385833,1744033353418,-287.920984,0.00040626,14]
[357385834,1744033353428,-329.6,0.00040823,120]
[357385835,1744033353439,-499.31,0.00040927,2]
[357385836,1744033353453,-540.0,0.00041,120]
[357385837,1744033353464,-1430.8337968,0.00041,120]
[357385838,1744033353473,-1000.0,0.00041091,2]
[357385839,1744033353484,-151.92,0.00041096,2]
[357385840,1744033353494,-500.0,0.00041096,31]
[357385841,1744033353504,-615.73384798,0.00041096,31]
[357385842,1744033353514,-500.0,0.00041096,31]
[357385843,1744033353524,-500.0,0.00041096,31]
[357385844,1744033353533,-500.0,0.00041096,31]
[357385845,1744033353543,-500.0,0.00041096,31]
[357385846,1744033353552,-500.0,0.00041096,31]
[357385847,1744033353562,-500.0,0.00041096,31]
[357385848,1744033353572,-500.0,0.00041096,31]
[357385849,1744033353581,-500.0,0.00041096,31]
[357385850,1744033353591,-500.0,0.00041096,31]
[357385851,1744033353601,-450.0,0.00041096,31]
[357385852,1744033353611,-671.823695,0.00041096,14]
[357385853,1744033353621,-283.601999,0.00041096,14]
[357385854,1744033353630,-671.823695,0.00041096,14]
[357385855,1744033353640,-406.141962,0.00041096,14]
[357385856,1744033353650,-283.601999,0.00041096,14]
[357385857,1744033353659,-406.141962,0.00041096,14]
[357385858,1744033353673,-151.0,0.00041096,14]
[357385859,1744033353682,-254.633733,0.00041096,14]
[357385860,1744033353691,-254.633733,0.00041096,14]
[357385861,1744033353700,-197.006054,0.00041096,14]
[357385862,1744033353710,-197.006054,0.00041096,14]
[357385863,1744033353719,-996.73,0.00041399,2]
[357385864,1744033353728,-1212.62053296,0.0004178,15]
[357385865,1744033353737,-1630.68556017,0.00041826,14]
[357385866,1744033353746,-387.894996,0.00041858,14]
[357385867,1744033353755,-387.894996,0.00041858,14]
[357385868,1744033353765,-356.57832,0.00041858,14]
[357385869,1744033353773,-356.57832,0.00041858,14]
[357385870,1744033353783,-689.935196,0.00041858,14]
[357385871,1744033353792,-689.935196,0.00041858,14]
[357385872,1744033353801,-151.0,0.00041858,14]
[357385873,1744033353810,-160.86,0.00041879,2]
[357385874,1744033353820,-6471.19,0.00042,120]
[357385875,1744033353829,-258.37,0.00042,120]
[357385876,1744033353838,-981.99,0.00042,120]
[357385877,1744033353847,-562.32,0.00042125,120]
[357385878,1744033353857,-2796.40507584,0.0004243,2]
[357385879,1744033353869,-500.0,0.00042452,10]
[357385880,1744033353878,-406.28702162,0.00042452,10]
[357385881,1744033353890,-5219.0,0.00042583,7]
[357385882,1744033353900,-157.72,0.00042583,2]
[357385883,1744033353910,-499.31,0.00042707,2]
[357385884,1744033353924,-970.85,0.00042723,2]
[357385885,1744033353935,-970.85,0.00042734,2]
[357385886,1744033353944,-766.33258829,0.00042745,2]
[357385887,1744033353962,-204.51741171,0.00042745,2]
[357385888,1744033353972,-970.85,0.00042756,2]
[357385889,1744033353982,-427.82703589,0.00042768,2]
[357385890,1744033354234,-543.02296411,0.00042768,2]
[357385891,1744033354286,-970.85,0.00042779,2]
[357385892,1744033354296,-970.85,0.0004279,2]
[357385893,1744033354306,-600.0,0.000428,30]
[357385894,1744033354316,-501.0,0.000428,30]
[357385895,1744033354327,-50000.0,0.000428,10]
[357385896,1744033354337,-151.0,0.000428,14]
[357385897,1744033354348,-151.0,0.000428,14]
[357385898,1744033354357,-151.0,0.000428,14]
[357385899,1744033354368,-151.0,0.000428,14]
[357385900,1744033354378,-151.0,0.000428,14]
[357385901,1744033354388,-151.0,0.000428,14]
[357385902,1744033354399,-2023.056242,0.000428,14]
[357385903,1744033354410,-2023.056242,0.000428,14]
[357385904,1744033354423,-151.0,0.000428,14]
[357385905,1744033354433,-970.85,0.00042801,2]
[357385906,1744033354444,-151.0,0.00042802,14]
[357385907,1744033354455,-151.0,0.00042802,14]
[357385908,1744033354466,-7378.619414,0.00042802,14]
[357385909,1744033354477,-7378.619414,0.00042802,14]
[357385910,1744033354488,-372.330521,0.00042802,14]
[357385911,1744033354498,-372.330521,0.00042802,14]
[357385912,1744033354509,-671.823695,0.00042802,14]
[357385913,1744033354519,-671.823695,0.00042802,14]
[357385914,1744033354529,-283.601999,0.00042802,14]
[357385915,1744033354540,-406.141962,0.00042802,14]
[357385916,1744033354550,-283.601999,0.00042802,14]
[357385917,1744033354560,-406.141962,0.00042802,14]
[357385918,1744033354570,-151.0,0.00042802,14]
[357385919,1744033354580,-254.633733,0.00042802,14]
[357385920,1744033354590,-254.633733,0.00042802,14]
[357385921,1744033354600,-197.006054,0.00042802,14]
[357385922,1744033354610,-197.006054,0.00042802,14]
[357385923,1744033354620,-970.85,0.00042813,2]
[357385924,1744033354631,-4998.59965079,0.00042814,3]
[357385925,1744033354643,-6063.56104181,0.00042814,3]
[357385926,1744033354653,-4846.63333758,0.00042818,3]
[357385927,1744033354663,-970.85,0.00042824,2]
[357385928,1744033354675,-151.0,0.00042826,14]
[357385929,1744033354684,-418.235482,0.00042826,14]
[357385930,1744033354694,-418.235482,0.00042826,14]
[357385931,1744033354703,-654.8812012,0.00042826,30]
[357385932,1744033354712,-500.0,0.00042827,2]
[357385933,1744033354722,-206.65343746,0.00042827,2]
[357385934,1744033354732,-500.0,0.00042828,30]
[357385935,1744033354742,-200.0,0.00042828,7]
[357385936,1744033354751,-168.32805745,0.00042828,7]
[357385937,1744033354775,-31.67194255,0.00042828,7]
[357385938,1744033354784,-119.32805745,0.00042835,14]
[357385939,1744033354819,-31.67194255,0.00042835,14]
[357385940,1744033354828,-119.32805745,0.00042835,14]
[357385941,1744033354840,-31.67194255,0.00042835,14]
[357385942,1744033354849,-119.32805745,0.00042835,14]
[357385943,1744033354861,-31.67194255,0.00042835,14]
[357385944,1744033354870,-119.32805745,0.00042835,2]
[357385945,1744033354885,-151.0,0.00042835,2]
[357385946,1744033354905,-171.78,0.00035746,2]
[357385947,1744033354918,-298.43677052,0.00042835,2]
[357385948,1744033354930,-402.08517203,0.00042835,2]
[357385949,1744033354939,-3213.61697653,0.00042836,120]
[357385950,1744033354948,-155.556157,0.00042836,14]
[357385951,1744033354957,-151.0,0.00042836,14]
[357385952,1744033354967,-151.0,0.00042836,14]
[357385953,1744033354976,-151.0,0.00042836,14]
[357385954,1744033354986,-151.0,0.00042836,14]
[357385955,1744033354996,-151.0,0.00042836,14]
[357385956,1744033355005,-157.422807,0.00042836,14]
[357385957,1744033355015,-287.920984,0.00042836,14]
[357385958,1744033355024,-73.78193754,0.00042836,14]
[357385959,1744033355040,-214.13904646,0.00042836,14]
[357385960,1744033355050,-782.59095354,0.00042846,2]
[357385961,1744033355067,-188.25904646,0.00042846,2]
[357385962,1744033355076,-111.74095354,0.00042852,120]
[357385963,1744033355095,-454.28904646,0.00042852,120]
[357385964,1744033355105,-45.71095354,0.00042857,2]
[357385965,1744033355116,-264.92067383,0.00042857,2]
[357385966,1744033355133,-500.0,0.00042857,2]
[357385967,1744033355146,-160.21837263,0.00042857,2]
[357385968,1744033355156,-112.23968237,0.00042859,3]
[357385969,1744033355178,-151.0,0.00042859,3]
[357385970,1744033355195,-151.0,0.00042859,3]
[357385971,1744033355207,-151.0,0.00042859,3]
[357385972,1744033355225,-151.0,0.00042859,3]
[357385973,1744033355240,-151.0,0.00042859,3]
[357385974,1744033355285,-3979.39365521,0.00042859,3]
[357385975,1744033355295,-3399.22575879,0.0004286,3]
[357385976,1744033355331,-1447.40757879,0.0004286,3]
[357385977,1744033355340,-970.85,0.00042869,2]
[357385978,1744033355350,-325.35482,0.00042869,14]
[357385979,1744033355359,-325.35482,0.00042869,14]
[357385980,1744033355368,-279.735379,0.00042869,14]
[357385981,1744033355377,-279.735379,0.00042869,14]
[357385982,1744033355387,-504.174447,0.00042869,14]
[357385983,1744033355395,-504.174447,0.00042869,14]
[357385984,1744033355405,-2741.83254321,0.0004287,3]
[357385985,1744033355419,-387.894996,0.0004287,3]
[357385986,1744033355435,-387.894996,0.0004287,3]
[357385987,1744033355446,-372.330521,0.0004287,3]
[357385988,1744033355457,-372.330521,0.0004287,3]
[357385989,1744033355484,-356.57832,0.0004287,3]
[357385990,1744033355495,-356.57832,0.0004287,3]
[357385991,1744033355510,-6086.72047539,0.0004287,3]
[357385992,1744033355519,-151.0,0.0004287,14]
[357385993,1744033355528,-151.0,0.0004287,14]
[357385994,1744033355538,-4846.63333758,0.00042871,3]
[357385995,1744033355547,-500.0,0.00042873,10]
[357385996,1744033355557,-500.0,0.00042873,10]
[357385997,1744033355567,-500.0,0.00042873,10]
[357385998,1744033355576,-355.47783704,0.00042873,10]
[357385999,1744033355586,-970.85,0.0004288,2]
[357386000,1744033355596,-151.0,0.00042881,14]
[357386001,1744033355605,-689.935196,0.00042881,14]
[357386002,1744033355614,-689.935196,0.00042881,14]
[357386003,1744033355623,-167.886264,0.00042881,14]
[357386004,1744033355632,-970.85,0.00042891,2]
[357386005,1744033355642,-970.85,0.00042902,2]
[357386006,1744033355651,-387.894996,0.00042904,14]
[357386007,1744033355660,-387.894996,0.00042904,14]
[357386008,1744033355674,-356.57832,0.00042904,14]
[357386009,1744033355683,-356.57832,0.00042904,14]
[357386010,1744033355692,-151.0,0.00042904,14]
[357386011,1744033355701,-151.0,0.00042904,14]
[357386012,1744033355710,-151.0,0.00042904,14]
[357386013,1744033355720,-151.0,0.00042904,14]
[357386014,1744033355730,-2023.056242,0.00042904,14]
[357386015,1744033355740,-2023.056242,0.00042904,14]
[357386016,1744033355749,-151.0,0.00042904,14]
[357386017,1744033355758,-970.85,0.00042914,2]
[357386018,1744033355767,-970.85,0.00042925,2]
[357386019,1744033355776,-970.85,0.00042936,2]
[357386020,1744033355786,-397.0595746,0.00043,120]
[357386021,1744033355796,-1300.7104866,0.00043,120]
[357386022,1744033355806,-4846.63333758,0.00043098,3]
[357386023,1744033355815,-11062.1606926,0.00043109,3]
[357386024,1744033355825,-151.0,0.00043138,14]
[357386025,1744033355835,-4846.63333758,0.00043246,3]
[357386026,1744033355845,-150.0,0.00043249,2]
[357386027,1744033355855,-200.0,0.00043256,7]
[357386028,1744033355865,-1212.62053296,0.00043476,15]
[357386029,1744033355874,-151.0,0.00043652,14]
[357386030,1744033355884,-151.0,0.00043652,14]
[357386031,1744033355894,-151.0,0.00043652,14]
[357386032,1744033355903,-151.0,0.00043652,14]
[357386033,1744033355912,-151.0,0.00043652,14]
[357386034,1744033355929,-996.73,0.00043663,2]
[357386035,1744033355939,-671.823695,0.00043663,14]
[357386036,1744033355949,-671.823695,0.00043663,14]
[357386037,1744033355959,-283.601999,0.00043663,14]
[357386038,1744033355968,-406.141962,0.00043663,14]
[357386039,1744033355978,-283.601999,0.00043663,14]
[357386040,1744033355987,-406.141962,0.00043663,14]
[357386041,1744033355996,-151.0,0.00043663,14]
[357386042,1744033356006,-254.633733,0.00043663,14]
[357386043,1744033356016,-254.633733,0.00043663,14]
[357386044,1744033356025,-197.006054,0.00043663,14]
[357386045,1744033356035,-197.006054,0.00043663,14]
[357386046,1744033356044,-200.0,0.00043689,7]
[357386047,1744033356053,-700.0,0.000439,16]
[357386048,1744033356063,-866.1,0.000439,14]
[357386049,1744033356072,-151.0,0.000439,14]
[357386050,1744033356081,-418.235482,0.000439,14]
[357386051,1744033356092,-418.235482,0.000439,14]
[357386052,1744033356102,-9693.26667516,0.00043995,3]
[357386053,1744033356113,-11062.1606926,0.00044006,3]
[357386054,1744033356122,-150.0,0.0004401,2]
[357386055,1744033356133,-151.0,0.00044016,14]
[357386056,1744033356142,-151.0,0.00044016,14]
[357386057,1744033356151,-151.0,0.00044016,14]
[357386058,1744033356161,-151.0,0.00044016,14]
[357386059,1744033356176,-248.738209,0.00044016,14]
[357386060,1744033356185,-151.0,0.00044016,14]
[357386061,1744033356195,-151.0,0.00044016,14]
[357386062,1744033356205,-151.0,0.00044016,14]
[357386063,1744033356214,-287.920984,0.00044016,14]
[357386064,1744033356223,-287.920984,0.00044016,14]
[357386065,1744033356232,-200.0,0.00044126,7]
[357386066,1744033356241,-156.04,0.00044216,2]
[357386067,1744033356251,-263.67,0.00044239,2]
[357386068,1744033356260,-156.04,0.00044248,2]
[357386069,1744033356269,-156.04,0.00044279,2]
[357386070,1744033356278,-156.04,0.00044311,2]
[357386071,1744033356287,-156.04,0.00044343,2]
[357386072,1744033356296,-405.13026583,0.00044373,120]
[357386073,1744033356305,-156.04,0.00044374,2]
[357386074,1744033356314,-166.68,0.00044405,2]
[357386075,1744033356323,-156.04,0.00044406,2]